bitfinex/quotes_BTCUSD_20230117
["timestamp","ask_amount","ask_price","bid_price","bid_amount"]
[1673979881004,0.08330005,21244.0,21243.0,0.470743]
[1673979881256,0.08330005,21244.0,21242.0,0.54585]
[1673979881744,0.08330005,21244.0,21242.0,0.47075]
[1673979881980,0.55402305,21244.0,21241.0,0.83586114]
[1673979882237,0.08330005,21244.0,21242.0,0.94151]
[1673979882994,0.08330005,21244.0,21242.0,0.470749]
[1673979885859,0.08330005,21244.0,21241.0,0.83586214]
[1673979886649,0.08330005,21244.0,21241.0,1.30662814]
[1673979888514,0.08330005,21244.0,21243.0,0.0752]
[1673979888780,0.08330005,21244.0,21243.0,1.80899]
[1673979890131,0.08330005,21244.0,21243.0,2.25899]
[1673979890392,0.08330005,21244.0,21243.0,1.94099043]
[1673979891181,0.08330005,21244.0,21243.0,1.49099043]
[1673979891951,0.08330005,21244.0,21243.0,1.49134732]
[1673979892712,0.08330005,21244.0,21243.0,1.49099043]
[1673979892968,0.08330005,21244.0,21243.0,1.412229]
[1673979893735,0.08330005,21244.0,21243.0,1.733922]
[1673979895305,0.08330005,21244.0,21243.0,1.883922]
[1673979896072,0.08330005,21244.0,21243.0,1.733922]
[1673979896590,0.08330005,21244.0,21243.0,1.88159267]
[1673979896844,0.08330005,21244.0,21243.0,2.03159267]
[1673979897888,0.08330005,21244.0,21243.0,2.33159267]
[1673979898147,0.08330005,21244.0,21243.0,2.192422]
[1673979898423,0.08330005,21244.0,21243.0,1.892422]
[1673979899172,0.08330005,21244.0,21243.0,1.412229]
[1673979901283,0.08330005,21244.0,21243.0,1.733922]
[1673979901825,0.08330005,21244.0,21243.0,1.412229]
[1673979903880,0.07830005,21244.0,21243.0,1.412229]
[1673979907503,0.07830005,21244.0,21243.0,1.733922]
[1673979908898,0.07830005,21244.0,21243.0,1.809122]
[1673979909803,0.07830005,21244.0,21243.0,2.109122]
[1673979910783,0.07830005,21244.0,21243.0,2.24829267]
[1673979911053,0.07830005,21244.0,21243.0,1.809122]
[1673979911555,0.07830005,21244.0,21243.0,1.487429]
[1673979912074,0.07830005,21244.0,21243.0,1.809122]
[1673979913634,0.07830005,21244.0,21243.0,1.338379]
[1673979913933,0.07830005,21244.0,21243.0,1.016686]
[1673979915233,0.07830005,21244.0,21243.0,1.338379]
[1673979915456,0.07830005,21244.0,21243.0,2.2587666]
[1673979915722,0.07830005,21244.0,21243.0,3.15968899]
[1673979917032,0.07830005,21244.0,21243.0,3.29980447]
[1673979917288,0.07830005,21244.0,21243.0,3.01381042]
[1673979917563,0.07830005,21244.0,21243.0,3.30824471]
[1673979919261,0.07830005,21244.0,21243.0,3.4461824]
[1673979919550,0.07830005,21244.0,21243.0,3.16812923]
[1673979919804,0.07830005,21244.0,21243.0,3.30819618]
[1673979920591,0.07830005,21244.0,21243.0,3.30819929]
[1673979921113,0.07830005,21244.0,21243.0,3.30319929]
[1673979922464,0.07830005,21244.0,21243.0,3.16312923]
[1673979922725,0.07830005,21244.0,21243.0,4.13145509]
[1673979922981,0.07830005,21244.0,21243.0,3.4411824]
[1673979925971,0.07830005,21244.0,21243.0,3.93395925]
[1673979926230,0.07830005,21244.0,21243.0,4.0001147]
[1673979926740,0.07830005,21244.0,21243.0,4.28026155]
[1673979926990,0.07830005,21244.0,21243.0,3.93605293]
[1673979927250,0.07830005,21244.0,21243.0,4.14614886]
[1673979927797,0.07830005,21244.0,21243.0,3.93605293]
[1673979929349,0.07830005,21244.0,21243.0,3.92755293]
[1673979929603,0.07830005,21244.0,21243.0,4.13765999]
[1673979930110,0.07830005,21244.0,21243.0,3.43612713]
[1673979930331,0.07830005,21244.0,21243.0,3.15598028]
[1673979930585,0.07830005,21244.0,21243.0,3.43612713]
[1673979930830,0.07830005,21244.0,21243.0,4.14499629]
[1673979931298,0.07830005,21244.0,21243.0,3.93488923]
[1673979931550,0.07830005,21244.0,21243.0,4.27909785]
[1673979932050,0.07830005,21244.0,21243.0,3.93488923]
[1673979932322,0.07830005,21244.0,21243.0,3.43610957]
[1673979932819,0.07830005,21244.0,21243.0,2.99603392]
[1673979933578,0.07830005,21244.0,21243.0,2.98617288]
[1673979933836,0.07830005,21244.0,21243.0,2.71009963]
[1673979934083,0.07830005,21244.0,21243.0,2.9861647]
[1673979934330,0.07830005,21244.0,21243.0,2.50001013]
[1673979934587,0.07830005,21244.0,21243.0,2.17831713]
[1673979934845,0.07830005,21244.0,21243.0,2.10311713]
[1673979936139,0.07830005,21244.0,21243.0,2.13911713]
[1673979937885,0.07830005,21244.0,21243.0,2.03911713]
[1673979938134,0.07830005,21244.0,21243.0,2.66081013]
[1673979938379,0.07830005,21244.0,21243.0,3.14691454]
[1673979938885,0.07830005,21244.0,21243.0,3.28699019]
[1673979939721,0.1,21245.0,21243.0,4.047939]
[1673979939946,0.1,21245.0,21244.0,0.94220229]
[1673979940174,0.1,21245.0,21244.0,2.29973206]
[1673979940426,0.1,21245.0,21244.0,1.81360786]
[1673979940677,0.1,21245.0,21244.0,1.373535]
[1673979940929,0.1,21245.0,21244.0,1.484235]
[1673979941689,0.1,21245.0,21244.0,1.263135]
[1673979942704,0.1,21245.0,21244.0,1.70320786]
[1673979943982,0.1,21245.0,21244.0,1.91331715]
[1673979944501,0.1,21245.0,21244.0,2.18963166]
[1673979944778,0.1,21245.0,21244.0,1.91331715]
[1673979945004,0.1,21245.0,21244.0,2.18968274]
[1673979945252,0.1,21245.0,21244.0,1.88968274]
[1673979945514,0.1,21245.0,21244.0,1.40320786]
[1673979945762,0.1,21245.0,21244.0,1.91331715]
[1673979946266,0.1,21245.0,21244.0,2.41017336]
[1673979946515,0.1,21245.0,21244.0,2.55024735]
[1673979946771,0.1,21245.0,21244.0,3.38732658]
[1673979947290,0.1,21245.0,21244.0,2.55028417]
[1673979948064,0.1,21245.0,21244.0,2.27013732]
[1673979948319,0.1,21245.0,21244.0,2.41023298]
[1673979948859,0.1,21245.0,21244.0,2.27013732]
[1673979949349,0.1,21245.0,21244.0,2.4102367]
[1673979949599,0.1,21245.0,21244.0,2.27013732]
[1673979950357,0.1,21245.0,21244.0,2.41021697]
[1673979950608,0.1,21245.0,21244.0,2.27013732]
[1673979950846,0.1,21245.0,21244.0,2.29941053]
[1673979951825,0.1,21245.0,21244.0,2.15933732]
[1673979952075,0.1,21245.0,21244.0,2.43948417]
[1673979952849,0.1,21245.0,21244.0,2.92187041]
[1673979953365,0.1,21245.0,21244.0,3.26607903]
[1673979953654,0.01304086,21247.0,21245.0,0.64529353]
[1673979953881,0.01304086,21247.0,21246.0,4.08193634]
[1673979954125,0.01304086,21247.0,21246.0,4.1018675]
[1673979954865,0.01304086,21247.0,21246.0,5.44791537]
[1673979955116,0.01304086,21247.0,21246.0,5.14509655]
[1673979955370,8.6e-07,21247.0,21246.0,6.21478694]
[1673979956879,8.6e-07,21247.0,21246.0,6.63394635]
[1673979958153,8.6e-07,21247.0,21246.0,6.21575113]
[1673979958416,8.6e-07,21247.0,21246.0,5.81169655]
[1673979958682,8.6e-07,21247.0,21246.0,6.63490762]
[1673979958978,8.6e-07,21247.0,21246.0,5.81169655]
[1673979959450,8.6e-07,21247.0,21246.0,6.63461672]
[1673979962211,8.6e-07,21247.0,21246.0,6.21545731]
[1673979962496,0.0001,21250.0,21246.0,7.85351672]
[1673979962760,0.0001,21250.0,21249.0,1.51145364]
[1673979962984,0.0001,21250.0,21249.0,3.57971873]
[1673979963243,0.0001,21250.0,21249.0,6.15286218]
[1673979963494,0.0001,21250.0,21249.0,5.87402661]
[1673979963748,2.111e-05,21250.0,21249.0,5.63872661]
[1673979964024,0.01258296,21251.0,21250.0,0.15]
[1673979964258,0.01258296,21251.0,21250.0,4.45233528]
[1673979965538,0.01258296,21251.0,21250.0,3.89874101]
[1673979965796,0.01258296,21251.0,21250.0,3.68984526]
[1673979966061,0.01258296,21251.0,21250.0,3.89874452]
[1673979966374,0.01258296,21251.0,21250.0,3.68984526]
[1673979967100,0.01258296,21251.0,21250.0,3.89871509]
[1673979967355,0.01258296,21251.0,21250.0,3.13497048]
[1673979967609,0.01258296,21251.0,21250.0,3.27414649]
[1673979968135,0.01258296,21251.0,21250.0,2.85460501]
[1673979968641,0.01258296,21251.0,21250.0,3.33369499]
[1673979968905,0.01258296,21251.0,21250.0,2.85460501]
[1673979969686,0.01258296,21251.0,21250.0,2.715429]
[1673979970525,0.19189174,21251.0,21250.0,2.415429]
[1673979970740,0.01258296,21251.0,21250.0,1.483729]
[1673979973370,0.01258296,21251.0,21250.0,1.051536]
[1673979973371,0.19189174,21251.0,21250.0,1.051536]
[1673979973631,0.19189174,21251.0,21250.0,0.470648]
[1673979973632,0.11211296,21251.0,21250.0,0.470648]
[1673979973897,0.43380596,21251.0,21250.0,0.470648]
[1673979974110,0.65430596,21251.0,21250.0,0.470648]
[1673979974691,0.55477596,21251.0,21250.0,0.470648]
[1673979974942,0.44507596,21251.0,21250.0,6e-05]
[1673979975498,0.44507596,21251.0,21250.0,0.470648]
[1673979975726,0.12338296,21251.0,21250.0,0.470648]
[1673979976733,0.44507596,21251.0,21250.0,0.470648]
[1673979977489,0.12338296,21251.0,21250.0,0.470648]
[1673979978015,0.12338296,21251.0,21250.0,6e-05]
[1673979978293,0.44507596,21251.0,21250.0,6e-05]
[1673979979299,0.44507596,21251.0,21250.0,0.941236]
[1673979981573,1.15527265,21251.0,21250.0,6e-05]
[1673979981853,1.3120815,21251.0,21250.0,6e-05]
[1673979982107,1.08676387,21251.0,21250.0,6e-05]
[1673979982331,1.70732987,21251.0,21250.0,6e-05]
[1673979982848,1.55732987,21251.0,21250.0,6e-05]
[1673979983621,1.08676387,21251.0,21250.0,6e-05]
[1673979984121,2.02789587,21251.0,21250.0,6e-05]
[1673979984678,1.55732987,21251.0,21250.0,6e-05]
[1673979985179,1.08676387,21251.0,21250.0,6e-05]
[1673979985433,1.23676387,21251.0,21250.0,6e-05]
[1673979986212,2.17789587,21251.0,21250.0,6e-05]
[1673979988058,1.70732987,21251.0,21250.0,6e-05]
[1673979988620,2.06709587,21251.0,21250.0,6e-05]
[1673979988878,1.92049587,21251.0,21250.0,6e-05]
[1673979989695,0.97936387,21251.0,21250.0,6e-05]
[1673979990125,4.296e-05,21250.0,21247.0,0.470641]
[1673979990386,0.0747,21249.0,21247.0,0.470641]
[1673979990644,0.321693,21248.0,21247.0,0.470641]
[1673979991158,0.0747,21249.0,21247.0,0.941295]
[1673979991423,4.296e-05,21250.0,21247.0,0.941295]
[1673979994338,4.296e-05,21250.0,21248.0,0.15]
[1673979994606,4.296e-05,21250.0,21249.0,0.47061]
[1673979994861,4.296e-05,21250.0,21249.0,0.94122]
[1673980003052,0.09957296,21250.0,21249.0,0.47061]
[1673980003293,0.09957296,21250.0,21247.0,0.941293]
[1673980003548,0.321693,21249.0,21247.0,0.941293]
[1673980003798,0.27888174,21250.0,21247.0,0.941293]
[1673980004118,0.09957296,21250.0,21247.0,0.941293]
[1673980007209,0.57017096,21250.0,21246.0,0.941319]
[1673980007466,0.74947974,21250.0,21247.0,0.470654]
[1673980007716,0.57017096,21250.0,21247.0,0.470654]
[1673980008253,0.09957296,21250.0,21247.0,0.470654]
[1673980011403,0.24011374,21250.0,21247.0,0.470654]
[1673980011999,0.24011374,21250.0,21247.0,0.941308]
[1673980012153,0.14058374,21250.0,21247.0,0.941308]
[1673980012398,0.61117574,21250.0,21247.0,0.470654]
[1673980012653,0.47063496,21250.0,21247.0,0.470654]
[1673980013185,0.61117574,21250.0,21247.0,0.470654]
[1673980013904,0.8221081,21250.0,21247.0,0.470654]
[1673980014148,0.61117574,21250.0,21247.0,0.470654]
[1673980015148,0.8221081,21250.0,21247.0,0.470654]
[1673980016322,0.46223378,21249.0,21247.0,0.470654]
[1673980016538,0.321693,21248.0,21247.0,0.470654]
[1673980016799,0.14054078,21249.0,21247.0,0.470654]
[1673980017874,0.14054078,21249.0,21245.0,0.65960829]
[1673980017875,1.08177678,21249.0,21245.0,0.65960829]
[1673980018131,0.79046156,21249.0,21245.0,1.13029529]
[1673980018384,0.31984956,21249.0,21245.0,1.12029529]
[1673980018663,0.14054078,21249.0,21245.0,1.12029529]
[1673980018913,0.31984956,21249.0,21245.0,1.12029529]
[1673980019165,0.14054078,21249.0,21245.0,0.98111928]
[1673980019938,0.14054078,21249.0,21245.0,1.12029529]
[1673980023168,0.35147314,21249.0,21245.0,0.98111928]
[1673980023437,0.82208414,21249.0,21245.0,1.12029529]
[1673980023933,0.61115178,21249.0,21245.0,1.12029529]
[1673980024185,0.35147314,21249.0,21245.0,1.12029529]
[1673980024436,0.35147314,21249.0,21245.0,0.98111928]
[1673980024437,0.77164864,21249.0,21245.0,0.98111928]
[1673980024688,0.1501,21246.0,21245.0,0.51043028]
[1673980024952,0.396993,21246.0,21245.0,0.98110928]
[1673980025202,0.14054078,21248.0,21245.0,0.98110928]
[1673980025464,0.1,21248.0,21246.0,0.19072595]
[1673980025722,0.1,21248.0,21247.0,1.733655]
[1673980025970,0.1,21248.0,21247.0,1.87283101]
[1673980026228,0.1,21248.0,21247.0,1.733655]
[1673980026975,0.1,21248.0,21247.0,1.87283101]
[1673980027591,0.1,21248.0,21247.0,1.733655]
[1673980027850,0.1,21248.0,21247.0,1.411962]
[1673980029340,0.1,21248.0,21247.0,1.733655]
[1673980029854,0.1,21248.0,21247.0,1.411962]
[1673980032137,0.1,21248.0,21247.0,0.470654]
[1673980032637,0.1,21248.0,21247.0,0.941308]
[1673980033615,0.1,21248.0,21247.0,1.43203395]
[1673980033857,0.1,21248.0,21247.0,1.70217701]
[1673980034360,0.1,21248.0,21247.0,2.67476998]
[1673980034855,0.1,21248.0,21247.0,1.87283101]
[1673980035118,0.1,21248.0,21247.0,1.733655]
[1673980036393,0.1,21248.0,21247.0,1.411962]
[1673980037166,0.1,21248.0,21247.0,1.733655]
[1673980037920,0.1,21248.0,21247.0,1.882616]
[1673980038183,0.1,21248.0,21247.0,1.733655]
[1673980038434,0.1,21248.0,21247.0,1.411962]
[1673980039185,0.1,21248.0,21247.0,1.48395675]
[1673980041400,0.1,21248.0,21247.0,1.01330275]
[1673980042402,0.42157588,21248.0,21247.0,1.01330275]
[1673980042646,0.09988288,21248.0,21247.0,1.01330275]
[1673980044637,0.10988288,21248.0,21247.0,1.01330275]
[1673980046445,0.10888288,21248.0,21247.0,1.01330275]
[1673980048696,0.10888288,21248.0,21247.0,0.54264875]
[1673980048946,0.10888288,21248.0,21247.0,1.01330275]
[1673980050237,0.10888288,21248.0,21247.0,1.68304159]
[1673980050481,0.10888288,21248.0,21247.0,1.83822778]
[1673980050724,0.10888288,21248.0,21247.0,2.41674635]
[1673980050993,0.10888288,21248.0,21247.0,2.13822778]
[1673980051504,0.10888288,21248.0,21247.0,2.27842508]
[1673980051754,0.10888288,21248.0,21247.0,1.98406288]
[1673980052010,0.10888288,21248.0,21247.0,1.68406288]
[1673980052229,0.10888288,21248.0,21247.0,2.44903036]
[1673980052492,0.10888288,21248.0,21247.0,1.97837636]
[1673980052743,0.10888288,21248.0,21247.0,3.76540092]
[1673980053008,0.10888288,21248.0,21247.0,3.66492805]
[1673980053293,0.01258296,21251.0,21247.0,3.66492805]
[1673980053294,0.01258296,21251.0,21248.0,0.44730496]
[1673980053552,0.01258296,21251.0,21249.0,3.93123309]
[1673980053817,9.6e-07,21251.0,21250.0,1.84975712]
[1673980054105,0.06406734,21253.0,21251.0,0.15]
[1673980054352,0.06406734,21253.0,21252.0,3.28193658]
[1673980054602,0.06406734,21253.0,21252.0,3.58143658]
[1673980054859,0.06406734,21253.0,21252.0,3.74590685]
[1673980055133,0.06406734,21253.0,21252.0,3.95462006]
[1673980055376,0.06406734,21253.0,21252.0,4.16427518]
[1673980055634,0.06406734,21253.0,21252.0,4.30403192]
[1673980055893,0.06406734,21253.0,21252.0,5.1128969]
[1673980056160,0.06406734,21253.0,21252.0,3.95462006]
[1673980056906,0.06406734,21253.0,21252.0,3.95468006]
[1673980057198,0.06406734,21253.0,21252.0,4.02420147]
[1673980057452,0.01425134,21254.0,21253.0,0.15]
[1673980057791,0.01425134,21254.0,21253.0,2.42773868]
[1673980057987,0.01425134,21254.0,21253.0,3.36867361]
[1673980058249,0.0140707,21256.0,21254.0,0.01424966]
[1673980058505,0.01387145,21257.0,21255.0,2.09049377]
[1673980058760,0.01387145,21257.0,21256.0,1.53247595]
[1673980059011,0.01387145,21257.0,21256.0,2.13728632]
[1673980059264,0.01387145,21257.0,21256.0,1.720503]
[1673980059521,0.01387145,21257.0,21256.0,1.870503]
[1673980059772,0.01387145,21257.0,21256.0,1.796003]
[1673980060584,0.01387145,21257.0,21256.0,2.28778632]
[1673980060901,0.01446829,21266.0,21260.0,0.470346]
[1673980060911,6e-05,21267.0,21266.0,0.03463171]
[1673980061162,6.688e-05,21268.0,21266.0,2.33717071]
[1673980061419,6.688e-05,21268.0,21267.0,0.471693]
[1673980061420,0.46137426,21268.0,21267.0,0.471693]
[1673980061680,0.46137426,21268.0,21266.0,0.40180553]
[1673980061681,0.53627426,21268.0,21266.0,0.40180553]
[1673980061938,0.321693,21267.0,21266.0,0.87203953]
[1673980062171,6.688e-05,21268.0,21266.0,0.87203953]
[1673980062434,6.688e-05,21268.0,21266.0,1.21276548]
[1673980062695,6.688e-05,21268.0,21267.0,0.15]
[1673980063125,6.688e-05,21268.0,21267.0,1.412117]
[1673980063209,6.688e-05,21268.0,21267.0,1.787417]
[1673980063933,6.688e-05,21268.0,21267.0,1.76953987]
[1673980064438,6.688e-05,21268.0,21267.0,1.46953987]
[1673980064679,6.688e-05,21268.0,21267.0,1.76953987]
[1673980064925,6.688e-05,21268.0,21267.0,2.18486715]
[1673980065421,6.688e-05,21268.0,21267.0,2.25996715]
[1673980065671,6.688e-05,21268.0,21267.0,2.26846715]
[1673980067867,0.01789659,21270.0,21268.0,0.15]
[1673980068128,0.01789659,21270.0,21269.0,2.040194]
[1673980068368,0.01789659,21270.0,21269.0,2.340194]
[1673980069625,0.01772694,21277.0,21269.0,3.42250942]
[1673980069877,0.01772694,21277.0,21276.0,0.1506]
[1673980070123,0.01772694,21277.0,21276.0,1.92245795]
[1673980070365,0.01772694,21277.0,21276.0,1.881732]
[1673980070614,0.01772694,21277.0,21276.0,1.560039]
[1673980071115,0.01772694,21277.0,21276.0,1.410039]
[1673980071367,0.01772694,21277.0,21276.0,0.940026]
[1673980072873,0.01772694,21277.0,21276.0,1.090026]
[1673980073910,0.01772694,21277.0,21276.0,0.940026]
[1673980074164,0.11725694,21277.0,21276.0,0.470013]
[1673980074410,0.33941994,21277.0,21276.0,0.940026]
[1673980074654,0.33941994,21277.0,21276.0,0.470013]
[1673980075623,0.33941994,21277.0,21276.0,0.940026]
[1673980075889,0.33941994,21277.0,21275.0,0.470027]
[1673980076125,0.321693,21276.0,21275.0,0.470027]
[1673980076371,0.01772694,21277.0,21275.0,0.470027]
[1673980076614,0.321693,21276.0,21275.0,0.470027]
[1673980078060,0.321693,21276.0,21274.0,0.470041]
[1673980078329,0.01772694,21277.0,21274.0,0.470041]
[1673980079052,0.01772694,21277.0,21274.0,0.940098]
[1673980079298,0.321693,21276.0,21274.0,0.940098]
[1673980079555,0.09252694,21277.0,21274.0,0.940098]
[1673980079776,0.01772694,21277.0,21274.0,0.940098]
[1673980081207,0.321693,21276.0,21274.0,0.470057]
[1673980081440,0.396593,21275.0,21273.0,0.470061]
[1673980081685,0.321693,21274.0,21273.0,0.94014]
[1673980082214,0.62312694,21277.0,21273.0,0.94014]
[1673980082478,0.54822694,21277.0,21273.0,1.13086595]
[1673980083236,0.321693,21276.0,21273.0,0.94014]
[1673980083472,0.321693,21275.0,21273.0,0.94014]
[1673980083721,0.396493,21274.0,21273.0,0.94014]
[1673980083973,0.396493,21274.0,21272.0,0.47009]
[1673980084212,0.321693,21273.0,21272.0,0.47009]
[1673980084457,0.321693,21273.0,21271.0,0.470106]
[1673980084705,0.321693,21273.0,21268.0,0.93708763]
[1673980084706,0.396793,21272.0,21270.0,0.470138]
[1673980084962,0.396493,21271.0,21268.0,0.46690063]
[1673980085202,0.396493,21271.0,21268.0,0.93707363]
[1673980085203,0.321693,21270.0,21268.0,0.93707363]
[1673980085445,0.321693,21269.0,21268.0,0.46690063]
[1673980086232,0.321693,21269.0,21267.0,0.470192]
[1673980086487,0.321693,21268.0,21267.0,0.470192]
[1673980086724,0.321693,21268.0,21267.0,0.940404]
[1673980086968,0.49228662,21271.0,21267.0,0.940404]
[1673980087210,0.49228662,21271.0,21267.0,1.13112995]
[1673980087459,0.321693,21270.0,21267.0,1.13112995]
[1673980087708,0.321693,21269.0,21267.0,0.940404]
[1673980087956,0.321693,21268.0,21267.0,0.940404]
[1673980088303,0.321693,21268.0,21267.0,0.470192]
[1673980088541,0.321693,21268.0,21266.0,0.91248058]
[1673980088778,0.321693,21267.0,21266.0,0.470213]
[1673980089290,0.315593,21267.0,21266.0,0.470213]
[1673980089993,0.315593,21267.0,21265.0,0.470239]
[1673980090234,0.321693,21266.0,21265.0,0.470239]
[1673980090710,0.0749,21266.0,21264.0,0.47465497]
[1673980090960,0.40420878,21266.0,21264.0,0.00439497]
[1673980091209,0.39644,21265.0,21264.0,0.00439497]
[1673980092229,0.32154,21265.0,21264.0,0.00439497]
[1673980092480,0.32154,21265.0,21264.0,0.47467297]
[1673980092719,1.05675685,21267.0,21264.0,0.94495097]
[1673980092967,1.05675685,21267.0,21264.0,1.13567692]
[1673980093496,1.05675685,21267.0,21264.0,0.94495097]
[1673980093947,0.5514,21267.0,21264.0,0.94495097]
[1673980094448,0.5514,21267.0,21264.0,1.41522897]
[1673980103722,0.73070878,21267.0,21264.0,0.94495097]
[1673980104232,0.32154,21266.0,21264.0,0.94495097]
[1673980104484,0.5514,21267.0,21264.0,0.94495097]
[1673980104740,0.32154,21266.0,21264.0,0.94495097]
[1673980105001,0.32154,21265.0,21264.0,0.94495097]
[1673980105520,0.5514,21267.0,21264.0,0.94495097]
[1673980105780,0.5514,21267.0,21264.0,1.13567692]
[1673980106045,0.5514,21267.0,21264.0,0.94495097]
[1673980108635,0.5554,21267.0,21264.0,0.98995097]
[1673980109445,0.53224216,21267.0,21264.0,0.98995097]
[1673980109710,0.53212623,21267.0,21264.0,0.98995097]
[1673980110244,0.53212623,21267.0,21265.0,0.84406552]
[1673980110245,0.004,21267.0,21265.0,0.84406552]
[1673980110512,0.004,21267.0,21266.0,0.32154]
[1673980110759,0.004,21267.0,21266.0,2.032242]
[1673980111067,0.004,21267.0,21266.0,1.732242]
[1673980111283,0.004,21267.0,21266.0,2.032242]
[1673980111787,0.4253,21272.0,21266.0,2.502476]
[1673980112061,0.003,21267.0,21266.0,2.212936]
[1673980112579,0.003,21267.0,21266.0,2.534476]
[1673980112876,1.647586,21272.0,21266.0,2.502476]
[1673980113101,1.22348,21272.0,21267.0,0.19072595]
[1673980113351,1.0189,21272.0,21268.0,1.60126195]
[1673980113601,0.5936,21272.0,21268.0,1.60126195]
[1673980113848,0.5476,21272.0,21268.0,1.60126195]
[1673980114383,0.52415992,21272.0,21268.0,1.60126195]
[1673980114642,0.52415992,21272.0,21268.0,1.410536]
[1673980114907,0.52415992,21272.0,21268.0,1.60126195]
[1673980115157,0.52415992,21272.0,21268.0,1.414536]
[1673980115158,0.57015992,21272.0,21268.0,1.414536]
[1673980117238,0.57015992,21272.0,21268.0,1.414536]
[1673980117487,0.7107007,21272.0,21268.0,1.414536]
[1673980118686,1.1808127,21272.0,21268.0,0.944356]
[1673980118949,0.32154,21271.0,21268.0,0.944356]
[1673980119204,1.98022248,21272.0,21268.0,0.944356]
[1673980119471,0.32154,21271.0,21268.0,0.944356]
[1673980119733,0.32154,21270.0,21268.0,0.004]
[1673980120044,0.9018199,21269.0,21268.0,0.004]
[1673980120249,0.9768199,21269.0,21268.0,0.004]
[1673980120521,1.11736068,21269.0,21268.0,0.004]
[1673980120761,1.58752768,21269.0,21268.0,0.004]
[1673980121018,1.58752768,21269.0,21265.0,0.47024]
[1673980121271,1.91546346,21269.0,21268.0,0.004]
[1673980121546,2.05669468,21269.0,21265.0,0.47024]
[1673980121807,1.95546346,21269.0,21268.0,0.004]
[1673980122082,2.05669468,21269.0,21265.0,0.47024]
[1673980122336,0.15,21267.0,21265.0,0.51524]
[1673980122592,0.32154,21266.0,21265.0,0.47024]
[1673980122811,0.32154,21266.0,21265.0,0.985496]
[1673980123095,0.97412946,21269.0,21265.0,0.985496]
[1673980123333,1.26900468,21269.0,21265.0,1.17622195]
[1673980123593,1.12000468,21269.0,21265.0,1.17622195]
[1673980123905,1.12000468,21269.0,21265.0,1.13122195]
[1673980123906,0.9004639,21269.0,21265.0,1.13122195]
[1673980124120,0.82163814,21270.0,21265.0,1.13122195]
[1673980124121,0.14054078,21270.0,21265.0,1.13122195]
[1673980124429,0.004,21266.0,21265.0,0.985496]
[1673980125185,0.53550956,21270.0,21265.0,1.262036]
[1673980125441,0.14054078,21270.0,21266.0,0.19072595]
[1673980125708,0.14054078,21270.0,21267.0,0.940416]
[1673980125960,1.75000825,21271.0,21267.0,1.13114195]
[1673980126738,1.31280825,21271.0,21267.0,1.13114195]
[1673980127246,0.004,21270.0,21267.0,0.940416]
[1673980127504,1.31280825,21271.0,21267.0,0.940416]
[1673980127790,0.35147314,21271.0,21268.0,0.19072595]
[1673980128023,0.003,21271.0,21270.0,0.0745]
[1673980128311,0.21093236,21273.0,21270.0,0.32154]
[1673980128545,0.21093236,21273.0,21270.0,0.94029]
[1673980128807,0.35233042,21275.0,21270.0,0.94029]
[1673980129123,1.53344484,21276.0,21271.0,0.49072595]
[1673980129353,1.53344484,21276.0,21272.0,0.26602595]
[1673980129354,1.3121772,21276.0,21272.0,0.26602595]
[1673980129627,1.10124484,21276.0,21272.0,1.20620595]
[1673980130426,0.56447537,21276.0,21273.0,0.15]
[1673980130850,0.56447537,21276.0,21273.0,0.470066]
[1673980130852,0.01787537,21276.0,21273.0,0.470066]
[1673980131388,0.01787537,21276.0,21274.0,0.00172074]
[1673980131646,0.01787537,21276.0,21274.0,0.47177074]
[1673980132432,0.33941537,21276.0,21273.0,0.470066]
[1673980132700,0.01787537,21276.0,21273.0,0.470066]
[1673980133042,0.01887537,21276.0,21273.0,0.548066]
[1673980133527,0.01887537,21276.0,21274.0,0.42710258]
[1673980133789,0.01887537,21276.0,21275.0,0.15]
[1673980134045,0.01887537,21276.0,21274.0,1.51682242]
[1673980134520,0.01887537,21276.0,21274.0,0.89675942]
[1673980134776,0.01787537,21276.0,21274.0,0.89675942]
[1673980135044,0.01787537,21276.0,21275.0,0.015]
[1673980135821,0.01787537,21276.0,21274.0,0.89675942]
[1673980136122,0.01887537,21276.0,21274.0,0.97575942]
[1673980136379,0.01787537,21276.0,21274.0,0.89675942]
[1673980136635,0.01787537,21276.0,21275.0,0.015]
[1673980136888,0.01787537,21276.0,21274.0,1.36682042]
[1673980137155,0.01887537,21276.0,21274.0,1.44582042]
[1673980138180,0.01887537,21276.0,21275.0,8.602e-05]
[1673980138450,0.01887537,21276.0,21274.0,1.44582042]
[1673980138708,0.01887537,21276.0,21275.0,0.470035]
[1673980139223,0.01887537,21276.0,21274.0,0.549039]
[1673980139564,0.01887537,21276.0,21275.0,0.09991]
[1673980140031,0.01787537,21276.0,21275.0,0.09991]
[1673980140282,0.33941537,21276.0,21275.0,0.015]
[1673980140544,1.29465021,21276.0,21275.0,0.015]
[1673980140817,0.00287263,21274.0,21271.0,0.470117]
[1673980141073,0.57574878,21273.0,21270.0,0.940264]
[1673980141350,0.50084878,21272.0,21271.0,0.470119]
[1673980141592,0.32154,21272.0,21271.0,0.470119]
[1673980142906,0.31640328,21272.0,21271.0,0.470119]
[1673980143170,0.009,21272.0,21271.0,0.47520504]
[1673980143677,0.07817263,21274.0,21270.0,0.470129]
[1673980143986,0.009,21272.0,21271.0,0.005]
[1673980144202,0.009,21272.0,21269.0,0.940297]
[1673980144203,0.321503,21272.0,21269.0,0.470152]
[1673980144451,0.321503,21271.0,21269.0,0.940315]
[1673980144742,0.17930878,21272.0,21269.0,0.940315]
[1673980144961,0.14042086,21273.0,21269.0,0.470152]
[1673980145215,0.791606,21272.0,21269.0,0.470152]
[1673980145479,0.321503,21271.0,21269.0,0.470152]
[1673980145738,0.321503,21271.0,21268.0,1.93530378]
[1673980145739,0.321503,21270.0,21268.0,1.93530378]
[1673980145991,0.321503,21269.0,21268.0,1.5406981]
[1673980146244,0.321503,21269.0,21268.0,1.07207182]
[1673980146489,0.321503,21269.0,21268.0,1.0705141]
[1673980146737,0.0842,21271.0,21269.0,0.005]
[1673980146995,0.0842,21271.0,21269.0,0.940322]
[1673980147240,0.321503,21270.0,21269.0,0.470167]
[1673980147984,0.321503,21270.0,21268.0,1.0755281]
[1673980148236,0.97281952,21272.0,21268.0,1.0705251]
[1673980148486,0.009,21270.0,21269.0,0.10491]
[1673980149245,0.50271352,21272.0,21269.0,0.570077]